bitfinex-derivatives/quotes_BNBF0:USTF0_20250413
["timestamp","ask_amount","ask_price","bid_price","bid_amount"]
[1744530584855,0.3099569,593.63,592.54,2.997]
[1744530585759,0.29347647,593.62,592.54,2.997]
[1744530585954,0.3099569,593.61,592.54,2.997]
[1744530587857,0.30993084,593.6,592.54,2.997]
[1744530588159,0.30993084,593.61,592.54,2.997]
[1744530588457,0.30993084,593.6,592.54,2.997]
[1744530588654,0.30993084,593.61,592.54,2.997]
[1744530589351,0.33690452,593.64,592.55,0.33752425]
[1744530591862,0.30987102,593.63,592.55,0.33752425]
[1744530592062,0.30987102,593.63,592.55,0.96752425]
[1744530592458,0.30987102,593.63,592.55,1.54452425]
[1744530593064,0.30987102,593.63,592.55,2.16852425]
[1744530593262,0.30987102,593.63,592.56,0.30382477]
[1744530593462,0.30987102,593.63,592.57,0.33751286]
[1744530593662,0.30987102,593.63,592.58,0.30382477]
[1744530594064,0.33690452,593.64,592.57,0.33751286]
[1744530594257,0.30986865,593.63,592.58,0.30382475]
[1744530595666,0.33690452,593.64,592.57,0.33751286]
[1744530595860,0.30986766,593.63,592.58,0.30382375]
[1744530597165,0.30986766,593.63,592.57,0.33751286]
[1744530597166,0.33690452,593.64,592.57,0.33751286]
[1744530597366,0.30986758,593.63,592.58,0.30382367]
[1744530600168,0.33690452,593.64,592.57,0.33751286]
[1744530607269,0.30989686,593.63,592.57,0.33751286]
[1744530607574,0.30989686,593.63,592.58,1.15885265]
[1744530607775,0.30989686,593.63,592.58,0.855]
[1744530608077,0.30989671,593.62,592.58,0.855]
[1744530608273,0.30989671,593.63,592.58,0.855]
[1744530608470,0.30989671,593.63,592.59,0.466]
[1744530609475,0.60334967,593.63,592.59,0.466]
[1744530609676,0.30989671,593.62,592.59,0.466]
[1744530612575,0.30989671,593.61,592.59,0.466]
[1744530612775,0.30993982,593.6,592.59,0.466]
[1744530612975,0.30993982,593.63,592.59,0.466]
[1744530613276,0.30993982,593.62,592.59,0.466]
[1744530613475,0.30993982,593.63,592.59,0.466]
[1744530613677,0.60340639,593.62,592.59,0.466]
[1744530613976,0.30993982,593.61,592.59,0.466]
[1744530614377,0.30996922,593.6,592.59,0.466]
[1744530614577,0.30996922,593.61,592.59,0.466]
[1744530614878,0.30996922,593.6,592.59,0.466]
[1744530615077,0.30996922,593.61,592.59,0.466]
[1744530615378,0.30996922,593.6,592.59,0.466]
[1744530615574,0.30996922,593.63,592.59,0.466]
[1744530615774,0.33691587,593.62,592.59,0.466]
[1744530615979,0.30999634,593.61,592.59,0.466]
[1744530616480,0.29347895,593.6,592.59,0.466]
[1744530616676,0.30999634,593.59,592.59,0.466]
[1744530618376,0.64693491,593.58,592.59,0.466]
[1744530618582,0.30999634,593.57,592.59,0.466]
[1744530619382,0.2934938,593.56,592.59,0.466]
[1744530619579,0.30999634,593.55,592.59,0.466]
[1744530620682,0.31000634,593.54,592.59,0.466]
[1744530620877,0.31000634,593.53,592.6,0.524]
[1744530621082,0.31000634,593.55,592.6,0.524]
[1744530621385,0.31000634,593.54,592.6,0.524]
[1744530621683,0.29349504,593.52,592.6,0.524]
[1744530621884,0.31000634,593.51,592.6,0.524]
[1744530622182,0.29349504,593.52,592.6,0.524]
[1744530622383,0.31000592,593.51,592.6,0.524]
[1744530624385,0.31000592,593.57,592.6,0.524]
[1744530624585,0.29349999,593.5,592.6,0.524]
[1744530624785,0.31000592,593.49,592.6,0.524]
[1744530624987,0.31000592,593.57,592.6,0.524]
[1744530625184,0.31000592,593.56,592.6,0.524]
[1744530625382,0.31000592,593.57,592.6,0.524]
[1744530625586,0.29349256,593.55,592.6,0.524]
[1744530625882,0.31000592,593.54,592.6,0.524]
[1744530630289,0.33693857,593.58,592.6,0.524]
[1744530630493,0.31000699,593.57,592.6,0.524]
[1744530630694,0.29349627,593.53,592.6,0.524]
[1744530630993,0.31000699,593.52,592.6,0.524]
[1744530631894,0.3099885,593.51,592.6,0.524]
[1744530632093,0.3099885,593.52,592.6,0.524]
[1744530632296,0.3099885,593.51,592.6,0.524]
[1744530632496,0.3099885,593.52,592.6,0.524]
[1744530632696,0.3099885,593.51,592.6,0.524]
[1744530632899,0.3099885,593.52,592.6,0.524]
[1744530633198,0.3099885,593.51,592.6,0.524]
[1744530633499,0.3099885,593.5,592.61,0.58]
[1744530633701,0.3099885,593.57,592.62,0.544]
[1744530633895,0.33694992,593.56,592.62,0.544]
[1744530634095,0.3099885,593.55,592.62,0.544]
[1744530634295,0.3099885,593.54,592.62,0.544]
[1744530634501,0.3099885,593.53,592.62,0.544]
[1744530634700,0.33697263,593.52,592.62,0.544]
[1744530634898,0.3099885,593.51,592.62,0.544]
[1744530636808,0.33697263,593.52,592.62,0.544]
[1744530637107,0.3100106,593.51,592.62,0.544]
[1744530637611,0.29351236,593.5,592.62,0.544]
[1744530637806,0.3100106,593.49,592.62,0.544]
[1744530638409,0.29351236,593.5,592.62,0.544]
[1744530638611,0.30999543,593.49,592.62,0.544]
[1744530639407,0.30999543,593.51,592.63,0.601]
[1744530639608,0.29351236,593.48,592.63,0.601]
[1744530639807,0.30999543,593.47,592.63,0.601]
[1744530641407,0.29351236,593.48,592.63,0.601]
[1744530641613,0.30999582,593.47,592.63,0.601]
[1744530642512,0.30999582,593.51,592.63,0.601]
[1744530642811,0.29351484,593.46,592.63,0.601]
[1744530643011,0.30999582,593.45,592.63,0.601]
[1744530645608,0.30999582,593.44,592.63,0.601]
[1744530646113,0.29351236,593.45,592.63,0.601]
[1744530646413,0.30998561,593.44,592.63,0.601]
[1744530648614,0.30998561,593.51,592.63,0.601]
[1744530648913,0.30998561,593.5,592.64,0.551]
[1744530649114,0.30998561,593.51,592.64,0.551]
[1744530649414,0.30998561,593.5,592.64,0.551]
[1744530649615,0.29349504,593.5,592.64,0.551]
[1744530649809,0.30998561,593.49,592.64,0.551]
[1744530651511,0.30998561,593.51,592.64,0.551]
[1744530651716,0.30998561,593.5,592.64,0.551]
[1744530651915,0.30998561,593.51,592.64,0.551]
[1744530652416,0.33697263,593.52,592.64,0.551]
[1744530652613,0.29349504,593.5,592.64,0.551]
[1744530652916,0.30999012,593.49,592.64,0.551]
[1744530653317,0.30999012,593.49,592.65,0.539]
[1744530654319,0.30999012,593.51,592.65,0.539]
[1744530654617,0.29349627,593.49,592.65,0.539]
[1744530654914,0.30999012,593.48,592.65,0.539]
[1744530655217,0.30999012,593.48,592.65,1.144]
[1744530657023,0.29349627,593.49,592.65,1.144]
[1744530657322,0.30999323,593.48,592.65,1.144]
[1744530657523,0.30999323,593.51,592.65,1.144]
[1744530657724,0.29349256,593.49,592.65,1.144]
[1744530657925,0.30999323,593.48,592.65,1.144]
[1744530658626,0.29349256,593.49,592.65,1.144]
[1744530658819,0.30999082,593.48,592.65,1.144]
[1744530660426,0.3099937,593.47,592.65,1.144]
[1744530660625,0.3099937,593.48,592.65,1.144]
[1744530660825,0.3099937,593.47,592.65,1.144]
[1744530661026,0.3099937,593.46,592.65,1.144]
[1744530661226,0.3099937,593.48,592.65,1.144]
[1744530661526,0.30999323,593.47,592.65,1.144]
[1744530661722,0.30999323,593.46,592.65,1.144]
[1744530661927,0.30999323,593.48,592.65,1.144]
[1744530662126,0.30999323,593.47,592.65,1.144]
[1744530662323,0.30999323,593.48,592.65,1.144]
[1744530662523,0.30999323,593.47,592.65,1.144]
[1744530662726,0.30999323,593.46,592.65,1.144]
[1744530663028,0.30999369,593.45,592.65,1.144]
[1744530663224,0.30999369,593.48,592.65,1.144]
[1744530663422,0.30999369,593.47,592.65,1.144]
[1744530663625,0.29349627,593.49,592.65,1.144]
[1744530663930,0.30999369,593.48,592.65,1.144]
[1744530665631,0.30999369,593.48,592.65,2.016]
[1744530666432,0.30999369,593.47,592.65,2.016]
[1744530666628,0.29349256,593.49,592.65,2.016]
[1744530666825,0.30999369,593.48,592.65,2.016]
[1744530667533,0.29349256,593.49,592.65,2.016]
[1744530667731,0.31000737,593.48,592.65,2.016]
[1744530669535,0.31000737,593.47,592.65,2.016]
[1744530669730,0.31000737,593.48,592.65,2.016]
[1744530669932,0.31000737,593.47,592.65,2.016]
[1744530670133,0.31000737,593.48,592.65,2.016]
[1744530670735,0.29349627,593.49,592.65,2.016]
[1744530670934,0.30999221,593.48,592.65,2.016]
[1744530672434,0.30999221,593.47,592.65,2.016]
[1744530672734,0.30999221,593.46,592.65,2.016]
[1744530672936,0.30999221,593.45,592.65,2.016]
[1744530673135,0.30999221,593.48,592.65,2.016]
[1744530673434,0.30999221,593.47,592.65,2.016]
[1744530673635,0.30999221,593.48,592.65,2.016]
[1744530673835,0.30999221,593.47,592.65,2.016]
[1744530674031,0.30999221,593.46,592.65,2.016]
[1744530674231,0.30999221,593.48,592.65,2.016]
[1744530674433,0.30999221,593.45,592.65,2.016]
[1744530674737,0.30999221,593.44,592.65,2.016]
[1744530675036,0.30999221,593.48,592.65,2.016]
[1744530675335,0.30999221,593.47,592.65,2.016]
[1744530675535,0.30999221,593.48,592.65,2.016]
[1744530675735,0.30999221,593.47,592.65,2.016]
[1744530675937,0.30999221,593.48,592.65,2.016]
[1744530676138,0.30999221,593.47,592.65,2.016]
[1744530676336,0.30999221,593.48,592.65,2.016]
[1744530676532,0.30999221,593.47,592.65,2.016]
[1744530676730,0.30999221,593.46,592.65,2.016]
[1744530676932,0.30999221,593.48,592.65,2.016]
[1744530677137,0.30999221,593.47,592.65,2.016]
[1744530677337,0.30999221,593.48,592.65,2.016]
[1744530677540,0.30999221,593.47,592.65,2.016]
[1744530677733,0.30999221,593.48,592.65,2.016]
[1744530677931,0.30999221,593.47,592.65,2.016]
[1744530678133,0.30999221,593.48,592.65,2.016]
[1744530678337,0.30999221,593.47,592.65,2.016]
[1744530678537,0.30999221,593.51,592.65,2.016]
[1744530678839,0.29349627,593.49,592.65,2.016]
[1744530679039,0.30999221,593.48,592.65,2.016]
[1744530679639,0.30999221,593.48,592.65,2.588]
[1744530680236,0.29349627,593.49,592.65,2.588]
[1744530680439,0.30998669,593.48,592.65,2.588]
[1744530680739,0.30998669,593.48,592.65,3.161]
[1744530681440,0.30998669,593.51,592.65,3.161]
[1744530681740,0.29349627,593.49,592.65,3.161]
[1744530682039,0.30998669,593.48,592.65,3.161]
[1744530683442,0.29349627,593.49,592.65,3.161]
[1744530683642,0.31000651,593.48,592.65,3.161]
[1744530684442,0.31000651,593.51,592.65,3.161]
[1744530684638,0.29349256,593.49,592.65,3.161]
[1744530684839,0.31000651,593.48,592.65,3.161]
[1744530688341,0.29349256,593.49,592.65,3.161]
[1744530688539,0.3100039,593.48,592.65,3.161]
[1744530690445,0.3100039,593.51,592.65,3.161]
[1744530691444,0.33697263,593.52,592.65,3.161]
[1744530691649,0.29349256,593.5,592.65,3.161]
[1744530691848,0.30999036,593.49,592.65,3.161]
[1744530693050,0.29349256,593.5,592.65,3.161]
[1744530693246,0.30998909,593.49,592.65,3.161]
[1744530693450,0.30998909,593.51,592.65,3.161]
[1744530694648,0.29349256,593.5,592.65,3.161]
[1744530695150,0.30999644,593.49,592.65,3.161]
[1744530696454,0.30999644,593.51,592.65,3.161]
[1744530696655,0.29349504,593.49,592.65,3.161]
[1744530696854,0.30999644,593.48,592.65,3.161]
[1744530697854,0.29349504,593.49,592.65,3.161]
[1744530698048,0.30998996,593.48,592.65,3.161]
[1744530699450,0.30998996,593.51,592.65,3.161]
[1744530699649,0.29349627,593.49,592.65,3.161]
[1744530699852,0.30998996,593.48,592.65,3.161]
[1744530702454,0.30998996,593.51,592.65,3.161]
[1744530702649,0.29349256,593.49,592.65,3.161]
[1744530702855,0.31000336,593.48,592.65,3.161]
[1744530704152,0.29349256,593.49,592.65,3.161]
[1744530704351,0.31000357,593.48,592.65,3.161]
[1744530705459,0.33697263,593.52,592.65,3.161]
[1744530705460,0.31000357,593.51,592.65,3.161]
[1744530705654,0.29349627,593.49,592.65,3.161]
[1744530706057,0.30998439,593.48,592.65,3.161]
[1744530707364,0.29349627,593.49,592.65,3.161]
[1744530707558,0.30998536,593.48,592.65,3.161]
[1744530708564,0.30998536,593.47,592.65,3.161]
[1744530708760,0.30998536,593.48,592.65,3.161]
[1744530708958,0.30998536,593.47,592.65,3.161]
[1744530709156,0.30998536,593.48,592.65,3.161]
[1744530709359,0.30998536,593.47,592.65,3.161]
[1744530709663,0.29349627,593.49,592.65,3.161]
[1744530709858,0.30998497,593.48,592.65,3.161]
[1744530711565,0.30998497,593.51,592.65,3.161]
[1744530711865,0.29349627,593.49,592.65,3.161]
[1744530712165,0.30998497,593.48,592.65,3.161]
[1744530713766,0.29349627,593.49,592.65,3.161]
[1744530713966,0.30998965,593.48,592.65,3.161]
[1744530714463,0.30998965,593.51,592.65,3.161]
[1744530714769,0.29349627,593.49,592.65,3.161]
[1744530715068,0.30998965,593.48,592.65,3.161]
[1744530717468,1.28024234,593.5,592.65,3.161]
[1744530717768,0.30998965,593.49,592.65,3.161]
[1744530718567,0.60348469,593.49,592.65,3.161]
[1744530718768,0.30998965,593.48,592.65,3.161]
[1744530720470,0.30998965,593.5,592.65,3.161]
[1744530720772,0.60348592,593.49,592.65,3.161]
[1744530721072,0.30998965,593.48,592.65,3.161]
[1744530723475,0.30998965,593.51,592.65,3.161]
[1744530723669,0.29349627,593.49,592.65,3.161]
[1744530723872,0.30998965,593.48,592.65,3.161]
[1744530726471,0.30998965,593.51,592.65,3.161]
[1744530726674,0.30998965,593.5,592.65,3.161]
[1744530726976,0.30998965,593.49,592.65,3.161]
[1744530727175,0.30998965,593.51,592.65,3.161]
[1744530727578,0.33697263,593.52,592.65,3.161]
[1744530727771,0.30994817,593.51,592.65,3.161]
[1744530730777,0.33697263,593.52,592.65,3.161]
[1744530730975,0.30995353,593.51,592.65,3.161]
[1744530733879,0.33697263,593.52,592.65,3.161]
[1744530734085,0.30994802,593.51,592.65,3.161]
[1744530737085,0.33697263,593.52,592.65,3.161]
[1744530737285,0.30994762,593.51,592.65,3.161]
[1744530741886,0.30995185,593.5,592.65,3.161]
[1744530742088,0.30995185,593.51,592.65,3.161]
[1744530742288,0.30995185,593.5,592.65,3.161]
[1744530742487,0.30995185,593.51,592.65,3.161]
[1744530743388,0.33697263,593.52,592.65,3.161]
[1744530743585,0.30995812,593.51,592.65,3.161]
[1744530744991,0.33697263,593.52,592.65,3.161]
[1744530745192,0.30995533,593.51,592.65,3.161]
[1744530747694,0.33697263,593.52,592.65,3.161]
[1744530748088,0.30995351,593.51,592.65,3.161]
[1744530748692,0.33697263,593.52,592.65,3.161]
[1744530748892,0.30995609,593.51,592.65,3.161]
[1744530754998,0.33697263,593.52,592.65,3.161]
[1744530755198,0.30994464,593.51,592.65,3.161]
[1744530759703,0.33697263,593.52,592.65,3.161]
[1744530759903,0.30994639,593.51,592.65,3.161]
[1744530761303,0.33697263,593.52,592.65,3.161]
[1744530761499,0.30994636,593.51,592.65,3.161]
[1744530764506,0.33697263,593.52,592.65,3.161]
[1744530764706,0.30994971,593.51,592.65,3.161]
[1744530773917,0.33697263,593.52,592.65,3.161]
[1744530774112,0.3099485,593.51,592.65,3.161]
[1744530778719,0.33697263,593.52,592.65,3.161]
[1744530778923,0.30995007,593.51,592.65,3.161]
[1744530781427,0.33697263,593.52,592.65,3.161]
[1744530781626,0.30995032,593.51,592.65,3.161]
[1744530783028,0.33697263,593.52,592.65,3.161]
[1744530783226,0.30994978,593.51,592.65,3.161]
[1744530787127,0.33697263,593.52,592.65,3.161]
[1744530794439,0.30993982,593.51,592.65,3.161]
[1744530811946,0.33697263,593.52,592.65,3.161]
[1744530812247,0.30995502,593.51,592.65,3.161]
[1744530818550,0.33697263,593.52,592.65,3.161]
[1744530818748,0.30995215,593.51,592.65,3.161]
[1744530821751,0.33697263,593.52,592.65,3.161]
[1744530821957,0.30994322,593.51,592.65,3.161]
[1744530823458,0.30994733,593.5,592.65,3.161]
[1744530823657,0.30994733,593.51,592.65,3.161]
[1744530826461,0.33697263,593.52,592.65,3.161]
[1744530826764,0.30994741,593.51,592.65,3.161]
[1744530832966,0.30993828,593.5,592.65,3.161]
[1744530833167,0.30993828,593.51,592.65,3.161]
[1744530836070,0.33697263,593.52,592.65,3.161]
[1744530836264,0.30993843,593.51,592.65,3.161]
[1744530837769,0.30993884,593.5,592.65,3.161]
[1744530838067,0.30993884,593.49,592.65,3.161]
[1744530838262,0.30993884,593.51,592.65,3.161]
[1744530838468,0.30993884,593.5,592.65,3.161]
[1744530838663,0.30993884,593.51,592.65,3.161]
[1744530839168,0.33697263,593.52,592.65,3.161]
[1744530839470,0.30993868,593.51,592.65,3.161]
[1744530840669,0.33697263,593.52,592.65,3.161]
[1744530840869,0.30994338,593.51,592.65,3.161]
[1744530841869,0.33697263,593.52,592.65,3.161]
[1744530842068,0.30994202,593.51,592.65,3.161]
[1744530846672,0.33697263,593.52,592.65,3.161]
[1744530846881,0.30994537,593.51,592.65,3.161]
[1744530853081,0.33697263,593.52,592.65,3.161]
[1744530853282,0.3099414,593.51,592.65,3.161]
[1744530857889,0.33697263,593.52,592.65,3.161]
[1744530858081,0.30994667,593.51,592.65,3.161]
[1744530859489,0.33697263,593.52,592.65,3.161]
[1744530859686,0.30994673,593.51,592.65,3.161]
[1744530861088,0.33697263,593.52,592.65,3.161]
[1744530861293,0.30994667,593.51,592.65,3.161]
[1744530862694,0.33697263,593.52,592.65,3.161]
[1744530862894,0.30994693,593.51,592.65,3.161]
[1744530865890,0.33697263,593.52,592.65,3.161]
[1744530866094,0.30994464,593.51,592.65,3.161]
[1744530870699,0.33697263,593.52,592.65,3.161]
[1744530870999,0.30994504,593.51,592.65,3.161]
[1744530873698,0.60343265,593.51,592.65,3.161]
[1744530873899,0.30994504,593.5,592.65,3.161]
[1744530876795,0.30994504,593.49,592.65,3.161]
[1744530876998,0.30994504,593.5,592.65,3.161]
[1744530877201,0.30994504,593.49,592.65,3.161]
[1744530877398,0.30994504,593.48,592.65,3.161]
[1744530877598,0.30994504,593.5,592.65,3.161]
[1744530877797,0.30994504,593.49,592.65,3.161]
[1744530878000,0.30994504,593.48,592.65,3.161]
[1744530878201,0.30994504,593.5,592.65,3.161]
[1744530878401,0.30994504,593.49,592.65,3.161]
[1744530878599,0.30994504,593.5,592.65,3.161]
[1744530879702,0.30994504,593.49,592.65,3.161]
[1744530879903,0.60343389,593.51,592.65,3.161]
[1744530880097,0.30994504,593.5,592.65,3.161]
[1744530880299,0.30995412,593.49,592.65,3.161]
[1744530880604,0.30995412,593.48,592.65,3.161]
[1744530880798,0.30995412,593.5,592.65,3.161]
[1744530881805,0.29348885,593.51,592.65,3.161]
[1744530881999,0.3099536,593.5,592.65,3.161]
[1744530882602,0.3099536,593.51,592.65,3.161]
[1744530882905,0.3099536,593.5,592.65,3.161]
[1744530885001,0.29348885,593.51,592.65,3.161]
[1744530885206,0.30995607,593.5,592.65,3.161]
[1744530885701,0.30995607,593.51,592.65,3.161]
[1744530885901,0.30995607,593.5,592.65,3.161]
[1744530888709,0.30995607,593.49,592.65,3.161]
[1744530888910,0.30995607,593.51,592.65,3.161]
[1744530889108,0.30995607,593.5,592.65,3.161]
[1744530889307,0.30995607,593.51,592.65,3.161]
[1744530889714,0.33697263,593.52,592.65,3.161]
[1744530889913,0.3099453,593.51,592.65,3.161]
[1744530892914,0.33697263,593.52,592.65,3.161]
[1744530893114,0.30994174,593.51,592.65,3.161]
[1744530894722,0.30994201,593.5,592.65,3.161]
[1744530894917,0.30994201,593.51,592.65,3.161]
[1744530899319,0.33697263,593.52,592.65,3.161]
[1744530899520,0.30994145,593.51,592.65,3.161]
[1744530900722,0.33697263,593.52,592.65,3.161]
[1744530900919,0.30994127,593.51,592.65,3.161]
[1744530902022,0.33697263,593.52,592.65,3.161]
[1744530902222,0.30994581,593.51,592.65,3.161]
[1744530910031,0.33697263,593.52,592.65,3.161]
[1744530910230,0.30995198,593.51,592.65,3.161]
[1744530911628,0.33697263,593.52,592.65,3.161]
[1744530911832,0.30995222,593.51,592.65,3.161]
[1744530913235,0.33697263,593.52,592.65,3.161]
[1744530913430,0.30995198,593.51,592.65,3.161]
[1744530916537,0.33697263,593.52,592.65,3.161]
[1744530916739,0.30995639,593.51,592.65,3.161]
[1744530924648,0.30995281,593.5,592.65,3.161]
[1744530924852,0.30995281,593.51,592.65,3.161]
[1744530925053,0.30995281,593.5,592.65,3.161]
[1744530925248,0.30995281,593.51,592.65,3.161]
[1744530927751,0.63045034,593.52,592.65,3.161]
[1744530927950,0.30995297,593.51,592.65,3.161]
[1744530929456,0.63045034,593.52,592.65,3.161]
[1744530929757,0.30995283,593.51,592.65,3.161]
[1744530934359,0.33697263,593.52,592.65,3.161]
[1744530934657,0.30995273,593.51,592.65,3.161]
[1744530936956,0.33697263,593.52,592.65,3.161]
[1744530946067,0.30987765,593.51,592.65,3.161]
[1744530946668,0.30987765,593.51,592.66,0.30382459]
[1744530947268,0.33697263,593.52,592.63,0.29341461]
[1744530947470,0.30986841,593.51,592.64,0.30382447]
[1744530948666,0.33697263,593.52,592.63,0.29343564]
[1744530949374,0.33697263,593.52,592.64,0.4]
[1744530950070,0.33697263,593.52,592.65,0.598]
[1744530950469,0.33697263,593.52,592.65,2.425]
[1744530962782,0.30985572,593.51,592.65,2.425]
[1744530967686,0.30985572,593.51,592.66,0.3038123]
[1744530968488,0.30985572,593.51,592.66,0.6798123]
[1744530968682,0.30985572,593.51,592.67,0.3038123]
[1744530971281,0.30985572,593.51,592.67,0.8348123]
[1744530971481,0.30985572,593.51,592.67,0.531]
[1744530973083,0.30985572,593.51,592.68,0.30381174]
[1744530974591,0.30985572,593.51,592.67,0.531]
[1744530974792,0.30985572,593.51,592.68,0.30381182]
[1744530975592,0.30985572,593.51,592.67,0.531]
[1744530975887,0.33697263,593.52,592.67,0.531]
[1744530976092,0.30985244,593.51,592.67,0.531]
[1744530976392,0.33697263,593.52,592.68,0.30378395]
[1744530976693,1.28024234,593.85,592.68,0.30378395]
[1744530976888,0.30982516,593.84,592.68,0.30378395]
[1744530978591,0.30982516,593.84,592.68,0.94178395]
[1744530978790,0.30982516,593.84,592.69,0.30378395]
[1744530979091,1.28024234,593.85,592.68,0.638]
[1744530979293,0.30982051,593.84,592.69,0.30377673]
[1744530979802,0.30982051,593.95,592.68,0.638]
[1744530979991,0.64655486,593.94,592.68,0.638]
[1744530980294,0.64656052,593.93,592.68,0.638]
[1744530980493,0.64656619,593.92,592.68,0.638]
[1744530980694,0.64657186,593.91,592.68,0.638]
[1744530980896,0.64657753,593.9,592.68,0.638]
[1744530981094,0.3367627,593.89,592.68,0.638]
[1744530981294,0.30982051,593.88,592.68,0.638]
[1744530981801,0.30982051,593.88,592.68,1.31]
[1744530983899,0.30982051,593.88,592.69,0.30377518]
[1744530984098,0.3367627,593.89,592.68,1.31]
[1744530984297,0.30981822,593.88,592.69,0.30377574]
[1744530984500,0.30981822,593.88,592.68,1.31]
[1744530984701,0.30981822,593.88,592.69,0.30377353]
[1744530987099,0.30981822,593.88,592.7,0.48]
[1744530987298,0.3367627,593.89,592.7,0.48]
[1744530987499,0.30981733,593.88,592.71,0.30377355]
[1744530988702,0.3367627,593.89,592.7,0.48]
[1744530988901,0.30982195,593.88,592.71,0.30377816]
[1744530990408,0.30982195,593.88,592.72,0.755]
[1744530990608,0.30982195,593.88,592.73,0.30377816]
[1744530991909,0.29336143,593.87,592.73,0.30377816]
[1744530992110,0.30982195,593.86,592.73,0.30377816]
[1744530992310,0.29336143,593.87,592.72,0.755]
[1744530992505,0.30982099,593.86,592.73,0.3037772]
[1744530993810,0.30982099,593.87,592.73,0.3037772]
[1744530994310,0.30982099,593.87,592.74,0.477]
[1744530994813,0.29335896,593.86,592.74,0.477]
[1744530995109,0.30982099,593.85,592.74,0.477]
[1744530996615,0.30982099,593.87,592.74,0.477]
[1744530996815,0.30982099,593.86,592.74,0.477]
[1744530997012,0.30982099,593.88,592.74,0.477]
[1744530997213,0.3098179,593.87,592.74,0.477]
[1744530997418,0.3098179,593.88,592.74,0.477]
[1744530997714,0.3098179,593.87,592.74,0.477]
[1744530997913,0.29335896,593.86,592.74,0.477]
[1744530998312,0.3098179,593.85,592.74,0.477]
[1744530999621,0.3098179,593.88,592.74,0.477]
[1744530999823,0.29336267,593.84,592.74,0.477]
[1744531000022,0.3098179,593.83,592.74,0.477]
[1744531000323,0.29336267,593.84,592.74,0.477]
[1744531000523,0.30981879,593.83,592.74,0.477]
[1744531001925,0.29336267,593.84,592.74,0.477]
[1744531002124,0.30981879,593.83,592.74,0.477]
[1744531002722,0.30981879,593.88,592.74,0.477]
[1744531002922,0.30981879,593.87,592.74,0.477]
[1744531003121,0.30981879,593.88,592.74,0.477]
[1744531003725,0.3367627,593.89,592.74,0.477]
[1744531003726,0.30981727,593.87,592.74,0.477]
[1744531003925,0.29335896,593.87,592.74,0.477]
[1744531004123,0.30981727,593.86,592.74,0.477]
[1744531005128,0.29335896,593.87,592.74,0.477]
[1744531005327,0.30981737,593.86,592.74,0.477]
[1744531006725,0.29335896,593.87,592.74,0.477]
[1744531006923,0.30981612,593.86,592.74,0.477]
[1744531008331,0.29335896,593.87,592.74,0.477]
[1744531008525,0.30979971,593.86,592.74,0.477]
[1744531008723,0.3367627,593.89,592.74,0.477]
[1744531008724,0.30979971,593.88,592.74,0.477]
[1744531008927,0.29334783,593.86,592.74,0.477]
[1744531009127,0.30979971,593.85,592.74,0.477]
[1744531009628,0.30979971,593.85,592.75,0.819]
[1744531011630,0.30979498,593.84,592.75,0.819]
[1744531011830,0.29334907,593.84,592.75,0.819]
[1744531012024,0.30979498,593.83,592.76,0.62]
[1744531012930,0.30979498,593.83,592.77,0.486]
[1744531013128,0.29334907,593.84,592.77,0.486]
[1744531013323,0.309792,593.83,592.77,0.486]
[1744531014830,0.309792,593.88,592.77,0.486]
[1744531015829,0.29334412,593.87,592.77,0.486]
[1744531016031,0.309792,593.86,592.77,0.486]
[1744531017734,0.309792,593.88,592.77,0.486]
[1744531017933,0.2933466,593.85,592.77,0.486]
[1744531018133,0.309792,593.84,592.77,0.486]